Cogmind - Beta 16.1 @@@ ROGUE MODE // 2026.06.21 @ 18:13:20 Player: D4-RYL Result: Destroyed by Y-45 Defender with Heavy Assault Rifle Performance ------------- Evolutions (0) 0 Regions Visited (2) 400 Robots Destroyed (20) 100 Value Destroyed (481) 481 Prototype IDs (2) 40 Alien Tech Used (0) 0 Bonus (0) 0 TOTAL SCORE: 1021 Bonus ------- None Cogmind --------- Core Integrity 0/250 Matter 300/300 Energy 123/125 System Corruption 0% Temperature Cool (0) Movement Rolling (80) Location -10/Mines Parts ------- > --- POWER (1) -------- Light Ion Engine > --- PROPULSION (2) --- Wheel Wheel > --- UTILITY (2) ------ Heat Sink Medium Storage Unit > --- WEAPON (2) ------- Medium Laser > --- INVENTORY (10) --- Light Ion Engine Wheel Medium Storage Unit Propulsion Shielding Light Armor Plating Assault Rifle Light Assault Rifle Grenade Launcher Datajack Peak State ------------ > --- POWER ------------ Light Ion Engine > --- PROPULSION ------- Wheel Wheel > --- UTILITY ---------- Small Storage Unit Seismic Detector > --- WEAPON ----------- Assault Rifle Assault Rifle > --- INVENTORY -------- Light Ion Engine Wheel Wheel Medium Laser [Rating: 7] Favorites ----------- Power Light Ion Engine Engine Light Ion Engine Propulsion Wheel Wheel Wheel Utility Medium Storage Unit Device Seismic Detector Storage Medium Storage Unit Weapon Assault Rifle Energy Gun Medium Laser Ballistic Gun Assault Rifle Build | -11 -10 -10 ------- Run | Yrd Mat Min Slots Evolved . | . . . Power . | . . . Propulsion . | . . . Utility . | . . . Weapon . | . . . Parts Attached 13 | 7 5 1 Power 2 | 1 1 . Engine 2 | 1 1 . Core . | . . . Reactor . | . . . Propulsion 4 | 2 2 . Treads . | . . . Leg . | . . . Wheel 4 | 2 2 . Hover . | . . . Flight . | . . . Utility 4 | 2 1 1 Device 2 | 1 . 1 Storage 2 | 1 1 . Processor . | . . . Hackware . | . . . Protection . | . . . Artifact . | . . . Weapon 3 | 2 1 . Energy Gun 1 | . 1 . Energy Cannon . | . . . Ballistic Gun 2 | 2 . . Ballistic Cannon . | . . . Launcher . | . . . Special Weapon . | . . . Impact Weapon . | . . . Slashing Weapon . | . . . Piercing Weapon . | . . . Special Melee Weapon . | . . . Unidentified Prototypes . | . . . Parts Lost 6 | . 5 1 Power 1 | . 1 . Propulsion 2 | . 2 . Utility 1 | . 1 . Weapon 2 | . 1 1 Highest Loss Streak 2 | . 2 1 To Critical Strikes . | . . . Average Backups 5 | 1 5 8 Power . | . . 1 Propulsion 1 | . 1 1 Utility 1 | . . 2 Weapon 1 | . 1 2 Tool/Special . | . . . Unused Backups 9 | . . 9 Power 1 | . . 1 Propulsion 1 | . . 1 Utility 3 | . . 3 Weapon 3 | . . 3 Tool/Special 1 | . . 1 Average Slot Usage (%) 86 | . 87 83 Engine 10 | . 9 14 Wheel 26 | . 26 28 Device 8 | . 8 8 Storage 14 | . 14 14 Energy Gun 11 | . 10 14 Ballistic Gun 12 | . 17 4 Peak Build Rating 7 | 7 7 6 Average Rating 6 | 4 6 5 On Entrance 4 | . 7 6 Avg Prop Armor Cover (%) . | . . . Naked Turns . | . . . Heaviest Build 18 | 13 18 17 Greatest Support 20 | 20 20 20 Greatest Overweight (x) 1 | . 1 . Average Overweight (x) . | . . . Largest Inventory Capacity 10 | 8 10 10 Average Capacity 9 | 7 9 10 Most Carried 9 | 4 7 9 Average Carried 5 | 1 5 8 Final Capacity 10 | 8 10 10 Final Carried 9 | 4 7 9 Class Distribution -------------------- 80% | Mutant 19% | Scavenger-Mutant Dominant Class ---------------- Mutant | -10/Materials Scavenger-Mutant | -10/Mines Resources | -11 -10 -10 ----------- Run | Yrd Mat Min Matter Collected 584 | 266 289 29 Remotely . | . . . Salvage Created 741 | 24 568 149 Parts 40 | 3 34 3 Haulers Intercepted 1 | . 1 . Recyclers Shooed 3 | . 2 1 Parts Field Recycled . | . . . Retrieved Matter . | . . . Parts Self-Destructed . | . . . Prevented . | . . . Parts Restored . | . . . Kills | -11 -10 -10 ------- Run | Yrd Mat Min Combat Hostiles Destroyed 14 | . 12 2 Guns 13 | . 12 1 Classes Destroyed 7 | 1 6 . Worker 1 | . 1 . Tunneler 1 | 1 . . Hauler 1 | . 1 . Recycler 2 | . 1 1 Watcher 1 | . 1 . Swarmer 3 | . 3 . Grunt 11 | . 9 2 Best Kill Streak 8 | 1 8 2 Combat Bots Only 8 | . 8 2 Max Kills in Single Turn 1 | 1 1 1 Gunslinging . | . . . Exploded . | . . . Melee . | . . . Uniques/NPCs Destroyed . | . . . Combat | -11 -10 -10 -------- Run | Yrd Mat Min Hostile Shots Fired 83 | . 62 21 Missed 13 | . 10 3 Hits 70 | . 52 18 Projectile 70 | . 52 18 Damage Taken 800 | . 566 234 Core 250 | . 140 110 Absorbed by Shields . | . . . Core Remaining (%) 100 | 100 . . Volleys Fired 79 | 2 61 16 Largest 2 | 2 2 2 Hottest 70 | 40 70 70 Shots Fired 143 | 4 119 20 Gun 143 | 4 119 20 Cannon . | . . . Launcher . | . . . Special . | . . . Kinetic 91 | 4 83 4 Thermal 52 | . 36 16 Explosive . | . . . Electromagnetic . | . . . Robot Hit Streak 16 | 1 16 12 Robot Miss Streak 3 | 2 3 1 Penetration Max . | . . . Secondary Targets 2 | . 2 . Max Gunslinging Chain 1 | . 1 . Shots Hit Robots 104 | 1 87 16 Core Hits 38 | 1 31 6 Critical Kills 1 | . 1 . Critical Parts Destroyed . | . . . Critical Strikes 9 | . 7 2 Burn 8 | . 6 2 Destroy 1 | . 1 . Melee Attacks . | . . . Impact . | . . . Slashing . | . . . Piercing . | . . . Sneak Attacks . | . . . Combat Hostiles . | . . . Follow-up Attacks . | . . . Damage Inflicted 1317 | 12 1110 195 Guns 1317 | 12 1110 195 Cannons . | . . . Explosions . | . . . Melee . | . . . Ramming . | . . . Kinetic 777 | 12 732 33 Thermal 540 | . 378 162 Explosive . | . . . Electromagnetic . | . . . Impact . | . . . Slashing . | . . . Piercing . | . . . Highest Corruption . | . . . Average Corruption . | . . . Corruption Purged . | . . . Corruption Blocked . | . . . Overload Shots . | . . . Overflow Damage . | . . . Projectiles . | . . . Explosions . | . . . Melee . | . . . Knockbacks . | . . . Impact . | . . . Kinetic . | . . . Secondary . | . . . Self-Inflicted Damage . | . . . Shots . | . . . Rammed . | . . . Targets Rammed . | . . . Kicked . | . . . Crushed . | . . . Highest Temperature 237 | . 54 237 Average Temperature 48 | . 19 104 Received Heat Transfer 393 | . 276 117 Siege Activations . | . . . Martial Activations . | . . . Shielding Activations . | . . . Robots Disrupted . | . . . Combat Hostiles . | . . . Robots Corrupted . | . . . Combat Hostiles . | . . . Parts Fried . | . . . Impact Corruptions . | . . . Robots Melted 1 | . . 1 Combat Hostiles 1 | . . 1 Parts Melted 3 | . 2 1 Heat Transferred 2183 | . 1554 629 Parts Sabotaged . | . . . Parts Stolen . | . . . Parts Stripped . | . . . Power Chain Reactions . | . . . Alert | -11 -10 -10 ------- Run | Yrd Mat Min Maximum Alert Level . | . . . Low Security (%) 100 | 100 100 100 Level 1 . | . . . Level 2 . | . . . Level 3 . | . . . Level 4 . | . . . Level 5 . | . . . High Security . | . . . Max Security . | . . . Peak Influence 155 | 5 155 40 Initial 11 | . 3 11 Average 57 | 1 85 9 Influence Increases 390 | 5 330 55 Destroy 0b10 Robot/C 280 | . 240 40 Destroy 0b10 Robot/NC 30 | 5 20 5 Destroy Leader 64 | . 54 10 Destroy Structure 1 | . 1 . Lose Combat Pursuer 15 | . 15 . Influence Decreases 390 | . 305 85 Entered New Map 21 | . 2 19 Time Decay 319 | . 253 66 Lost Part 50 | . 50 . Squads Dispatched 2 | . 2 . Investigation 1 | . 1 . Extermination . | . . . Reinforcement 1 | . 1 . Assault . | . . . Garrison . | . . . Intercept . | . . . Searches Triggered . | . . . Construction Impeded . | . . . Haulers Reinforced . | . . . Active Scanning Responses . | . . . Cargo Convoy Interrupts . | . . . Stealth | -11 -10 -10 --------- Run | Yrd Mat Min Distress Signals 1 | . 1 . Communications Jammed . | . . . Distress Signals . | . . . Times Spotted 24 | . 20 4 Peak Tracking Total 4 | . 4 2 Tactical Retreats 1 | . 1 . Traps | -11 -10 -10 ------- Run | Yrd Mat Min Traps Triggered 1 | . 1 . Indirectly . | . . . Trap Hack Attempts . | . . . Triggered . | . . . Disarmed . | . . . Reprogrammed . | . . . Reused . | . . . Traps Extracted . | . . . Installed . | . . . Triggered . | . . . Machines | -11 -10 -10 ---------- Run | Yrd Mat Min Machines Disabled . | . . . Max in Single Turn . | . . . Machines Repaired . | . . . Machines Dismantled . | . . . Machines Sabotaged . | . . . Overloaded Fab Kills . | . . . Hacking | -11 -10 -10 --------- Run | Yrd Mat Min Machines Accessed 2 | . 2 . Terminals 2 | . 2 . Fabricators . | . . . Repair Stations . | . . . Recycling Units . | . . . Scanalyzers . | . . . Garrison Access . | . . . Total Hacks 7 | . 7 . Successful 5 | . 5 . Failed 2 | . 2 . Catastrophic . | . . . Database Lockouts . | . . . Manual . | . . . Terminals 7 | . 7 . Fabricators . | . . . Repair Stations . | . . . Recycling Units . | . . . Scanalyzers . | . . . Garrison Access . | . . . Terminal Hacks 5 | . 5 . Record 4 | . 4 . Prototype ID Bank 1 | . 1 . Fabricator Hacks . | . . . Repair Station Hacks . | . . . Recycling Unit Hacks . | . . . Scanalyzer . | . . . Garrison Access Hacks . | . . . Unauthorized Hacks . | . . . Terminals . | . . . Fabricators . | . . . Repair Stations . | . . . Recycling Units . | . . . Scanalyzers . | . . . Garrison Access . | . . . Data Cores Recovered . | . . . Used . | . . . Hacking Detections 1 | . 1 . Full Trace Events 1 | . 1 . Feedback Events . | . . . Feedback Blocked . | . . . Robot Schematics Acquired . | . . . Robots Built . | . . . Authchips . | . . . Time . | . . . Total Robot Build Rating . | . . . Part Schematics Acquired . | . . . Parts Built . | . . . Authchips . | . . . Time . | . . . Total Part Build Rating . | . . . Part Studies Acquired . | . . . Parts Repaired . | . . . Time . | . . . Parts Recycled . | . . . Recycled Matter . | . . . Retrieved Matter . | . . . Retrieved Components . | . . . Parts Scanalyzed . | . . . Part Schematics Acquired . | . . . Parts Damaged . | . . . Bothacking | -11 -10 -10 ------------ Run | Yrd Mat Min Used RIF Installer . | . . . Robots Hacked . | . . . Non-combat . | . . . Combat . | . . . Robot Hacks Applied . | . . . Relay Couplers Released . | . . . Fabnet Peak Effective % . | . . . Robots Rewired . | . . . Allies Hacked . | . . . Hacks Repelled . | . . . Allies | -11 -10 -10 -------- Run | Yrd Mat Min Total Allies . | . . . Largest Group . | . . . Highest-Rated Group . | . . . Highest-Rated Ally . | . . . Total Orders . | . . . Ally Attacks . | . . . Total Damage . | . . . Kills . | . . . Allies Corrupted . | . . . Allies Melted . | . . . Intel | -11 -10 -10 ------- Run | Yrd Mat Min Active Infowar (turns) 374 | 5 369 . Seismic 374 | 5 369 . Robot Analysis Total . | . . . Derelict Logs Recovered 1 | . . 1 Drone Launches . | . . . Drone Recoveries . | . . . Exploration | -11 -10 -10 ------------- Run | Yrd Mat Min Turns Passed 923 | 54 590 279 Spaces Moved 766 | 43 433 290 Core 3 | 3 . . Treads . | . . . Legs . | . . . Wheels 763 | 40 433 290 Hover . | . . . Flight . | . . . Fastest Speed 50 | 50 80 80 Average Speed 80 | 77 81 80 Slowest Speed 95 | 80 95 80 Overloaded Moves . | . . . Propulsion Burnouts . | . . . Robots Hopped . | . . . Potential Cave-ins . | . . . Cave-ins Triggered . | . . . Exploration Rate (%) 41 | 3 55 65 Regions Visited 2 Branch Regions 1 Pre-discovered Areas . | . . . Known Exits Taken . | . . . Unknown Exits Taken 2 | 1 1 . Scrap Searched . | . . . Spaces Dug . | . . . Terrain Destroyed . | . . . Melee . | . . . Projectile . | . . . AOE . | . . . Terrain Rammed . | . . . Walls Destroyed . | . . . Machines Disabled . | . . . Actions | -11 -10 -10 --------- Run | Yrd Mat Min Total 924 | 55 552 317 Wait 53 | . 47 6 Move 764 | 42 432 290 Hop . | . . . Pick Up 14 | 4 7 3 Fast Attach 8 | 7 . 1 Attach 4 | . 4 . Detach . | . . . Swap 1 | . 1 . Drop 1 | . . 1 Fire 79 | 2 61 16 Melee . | . . . Ram . | . . . Kick . | . . . Crush . | . . . Escape Stasis . | . . . Rewire . | . . . Trap . | . . . Miscellaneous . | . . . Route ------- -11/Scrapyard -10/Materials (discovered 2 exits: [*Mat] / [*Min]) -10/Mines History --------- Turn | Location | Event 16 | -11/Scrapyard | Discovered new exit (range 16) 55 | -11/Scrapyard | Entered Materials 197 | -10/Materials | Destroyed 8 combat bots 201 | -10/Materials | Discovered new exit (range 16) 306 | -10/Materials | Build established: Mutant 431 | -10/Materials | Core integrity fell below 50% 580 | -10/Materials | Discovered new exit (range 6) 645 | -10/Materials | Entered Mines 678 | -10/Mines | Learned Materials security intel 731 | -10/Mines | Core integrity fell below 20% 837 | -10/Mines | YI-UF0 nonchalantly dropped a Grenade Launcher on the ground 924 | -10/Mines | Destroyed by Y-45 Defender with Heavy Assault Rifle Last Messages --------------- 00728_ G-47 Trooper suffers critical hit (Burn). 00731_ K-01 Serf collects debris. 00732_ Aluminum Leg melted. 00732_ G-47 Trooper destroyed. 00734_ K-01 Serf collects debris. 00742_ G-34 Mercenary suffers critical hit (Burn). 00744_ K-01 Serf collects debris. 00746_ G-34 Mercenary heat damages Ion Engine. 00746_ G-34 Mercenary critical meltdown. 00747_ K-01 Serf collects debris. 00751_ Acquired Heat Sink. 00751_ K-01 Serf collects debris. 00752_ Acquired 10 matter. 00754_ K-01 Serf collects debris. 00830_ YI-UF0 mumbles something. 00837_ YI-UF0 nonchalantly drops a Grenade Launcher on the ground. 00841_ YI-UF0 mumbles something. 00844_ Acquired Grenade Launcher. Map ----- +----------------------------------------------------+ | ?????????????????# ## ## | | ?????????????????## ## ^ ^### ## | | ??????????????????# ## ## #?# # | | ??????????????????# ## ^ # #?# # | | ???????????######## ## # ### | | ???????????# ## # ^ ## | | ???????????# ######### ^ # # | | ???????????# #???????#### ## %%# | | ??????????## #?????###### # | | ????????###! ##????# | | ???????## ###### % | | ???????# #### | | ???????# #??# | | ???????## |### #######??## | | ????????#####??##?????????## | | ???????????????????????????## | | ????????????????????????????## | | ?????????? ###???????????????# | | ??????????? ???###?????????## | | ??????????? ##?# ##?????????# | | ???????????# ## ##????????## | | ?????###?### #?????????# | | ????##"Y## ????????????# | | ????#"" # #??????????????# | | ????#[[ / #??????????????? | | ????#!! @ ##??????????????? ? | | ????#"" # ###??????????????? | | ????##"Y## ####???????????? | | ?????#### ####### #??? | | ????????## $ ???? | | ?????????# ####???????? | | ?????????## #??????????? | | ??????????## ####???????? | | ???????????## #???????? | | ????????????## ### #???????? | | ?????????????#### ##?# #???????? | | ????????????????#####??# #???????? | | ???????????????????????# #???????? | | ???????????????????##### #######?? | | ???????????????????# #?? | | ???????????????????# ######## #?# | | ???????????????????# ????????# ### | | ?????????????????? ?????????# | | ????????????????? ???????????# | | ??????????????? ????????????### # | | ?????????????? ???????????????# # | | ????????????? ?????????????????# | | ???????????? ??????????????????# # | | ???????????????????????????????# # | | ??????????????????????????????? # | +----------------------------------------------------+ Best States ------------- Heat Dissipation 35 Energy Generation 10 Energy Capacity 125 Matter Stores 300 Matter Capacity 300 Sight Range 16 Terrain Scan Density 10 Evasion (%) 44 Item Schematics ----------------- None Robot Schematics ------------------ None Fabricated ------------ Nothing Repaired ---------- Nothing Studied --------- None Alien Tech Used ----------------- None Achievements -------------- None Challenges ------------ None Game ------ Seed ForceBattleMantle Manual? 0 Play Time 00:12:07 Cumulative 26.1 hours Start 2026.06.21 @ 00:04:44 End 2026.06.21 @ 18:13:20 Sessions 3 Manual Loads 0 Difficulty Rogue Special Mode None Game No. 34 Rogue 30 Adventurer 4 Explorer 0 Win Type - Total 0 Types 0/0/0/0/0/0/0/0/0/0 Lore% 9 Gallery% 12 Achievement% 14 Wizard Run 0 Options --------- Layout 2 ASCII 0 Keyboard 1 Movement Numpad Keybinds 0 Fullscreen 1 Font 24/Terminus Map View 25x22 Zoom Use 88% Tactical HUD 1 Map Filters NONE Filters NONE Steam 1 RUN: 92975627-30f6-4274-ab0a-a009be70ce00